Cogmind - Beta 17.1 @@@ ROGUE MODE // 2026.08.29 @ 23:55:25 Player: Finn Result: Destroyed by 41-IXF(R) with Subdweller Laser Performance ------------- Evolutions (0) 0 Regions Visited (2) 400 Robots Destroyed (5) 25 Value Destroyed (122) 122 Prototype IDs (0) 0 Alien Tech Used (0) 0 Bonus (0) 0 TOTAL SCORE: 547 Bonus ------- None Cogmind --------- Core Integrity 0/250 Matter 224/300 Energy 71/100 System Corruption 0% Temperature Cool (6) Movement Flying (37) Location -10/Subcaves Parts ------- > --- POWER (1) -------- (None) > --- PROPULSION (2) --- Flight Unit Flight Unit > --- UTILITY (2) ------ Signal Interpreter Terrain Scanner > --- WEAPON (2) ------- (None) > --- INVENTORY (5) ---- Flight Unit Peak State ------------ > --- POWER ------------ Light Ion Engine > --- PROPULSION ------- Flight Unit Flight Unit > --- UTILITY ---------- Signal Interpreter Terrain Scanner > --- WEAPON ----------- Light Assault Rifle Plasma Cutter > --- INVENTORY -------- Flight Unit Terrain Scanner [Rating: 8] Favorites ----------- Power Light Ion Engine Engine Light Ion Engine Propulsion Compact Wheel Wheel Compact Wheel Flight Unit Flight Unit Utility Signal Interpreter Device Terrain Scanner Processor Signal Interpreter Weapon Light Assault Rifle Energy Gun Small Laser Ballistic Gun Light Assault Rifle Special Weapon Mining Laser Build | -11 -10 -10 ------- Run | Yrd Mat Sub Slots Evolved . | . . . Power . | . . . Propulsion . | . . . Utility . | . . . Weapon . | . . . Parts Attached 15 | 5 10 . Power 3 | 1 2 . Engine 3 | 1 2 . Core . | . . . Reactor . | . . . Propulsion 4 | 2 2 . Treads . | . . . Leg . | . . . Wheel 2 | 2 . . Hover . | . . . Flight 2 | . 2 . Utility 3 | . 3 . Device 2 | . 2 . Storage . | . . . Processor 1 | . 1 . Hackware . | . . . Protection . | . . . Artifact . | . . . Weapon 5 | 2 3 . Energy Gun 1 | 1 . . Energy Cannon . | . . . Ballistic Gun 1 | 1 . . Ballistic Cannon . | . . . Launcher . | . . . Special Weapon 3 | . 3 . Impact Weapon . | . . . Slashing Weapon . | . . . Piercing Weapon . | . . . Special Melee Weapon . | . . . Unidentified Prototypes . | . . . Parts Lost 7 | . 6 1 Power 2 | . 2 . Propulsion 1 | . 1 . Utility 1 | . 1 . Weapon 3 | . 2 1 Highest Loss Streak 4 | . 4 1 To Critical Strikes . | . . . Average Backups . | 1 . 1 Power . | . . . Propulsion . | . . 1 Utility . | . . . Weapon . | . . . Tool/Special . | . . . Unused Backups 1 | . . 1 Power . | . . . Propulsion 1 | . . 1 Utility . | . . . Weapon . | . . . Tool/Special . | . . . Average Slot Usage (%) 79 | . 81 71 Engine 10 | . 12 . Wheel 13 | . 16 . Flight 11 | . 8 28 Device 9 | . 8 14 Processor 13 | . 13 14 Energy Gun 5 | . 6 . Ballistic Gun 10 | . 12 . Special Weapon 3 | . 1 14 Peak Build Rating 8 | 5 8 5 Average Rating 5 | 3 5 4 On Entrance 3 | . 5 4 Avg Prop Armor Cover (%) . | . . . Naked Turns . | . . . Heaviest Build 7 | 5 7 2 Greatest Support 32 | 32 32 8 Greatest Overweight (x) . | . . . Average Overweight (x) . | . . . Largest Inventory Capacity 5 | 5 5 5 Average Capacity 5 | 5 5 5 Most Carried 5 | 5 4 1 Average Carried . | 1 . 1 Final Capacity 5 | 5 5 5 Final Carried 2 | . 2 1 Class Distribution -------------------- 100% | Mutant Dominant Class ---------------- Mutant | -10/Materials Mutant | -10/Subcaves Resources | -11 -10 -10 ----------- Run | Yrd Mat Sub Matter Collected 300 | 206 94 . Remotely . | . . . Salvage Created 148 | . 148 . Parts 15 | . 15 . Haulers Intercepted . | . . . Recyclers Shooed . | . . . Parts Field Recycled . | . . . Retrieved Matter . | . . . Parts Self-Destructed 5 | . . 5 Prevented . | . . . Parts Restored . | . . . Kills | -11 -10 -10 ------- Run | Yrd Mat Sub Combat Hostiles Destroyed 5 | . 5 . Guns 5 | . 5 . Classes Destroyed 2 | . 2 . Swarmer 2 | . 2 . Grunt 3 | . 3 . Best Kill Streak 2 | . 2 . Combat Bots Only 2 | . 2 . Max Kills in Single Turn 1 | . 1 . Gunslinging . | . . . Exploded . | . . . Melee . | . . . Uniques/NPCs Destroyed . | . . . Combat | -11 -10 -10 -------- Run | Yrd Mat Sub Hostile Shots Fired 69 | . 65 4 Missed 18 | . 17 1 Hits 51 | . 48 3 Projectile 51 | . 48 3 Critical Strikes 1 | . 1 . Damage Taken 625 | . 548 77 Core 255 | . 185 70 Absorbed by Shields . | . . . Core Remaining (%) 100 | 100 . . Volleys Fired 33 | . 32 1 Largest 2 | . 2 1 Hottest 100 | . 60 100 Shots Fired 44 | . 43 1 Gun 43 | . 43 . Cannon . | . . . Launcher . | . . . Special 1 | . . 1 Kinetic 29 | . 29 . Thermal 15 | . 14 1 Explosive . | . . . Electromagnetic . | . . . Robot Hit Streak 9 | . 9 . Robot Miss Streak 2 | . 2 1 Penetration Max . | . . . Secondary Targets . | . . . Shots Hit Robots 32 | . 32 . Core Hits 12 | . 12 . Critical Kills . | . . . Critical Parts Destroyed . | . . . Critical Strikes . | . . . Melee Attacks . | . . . Impact . | . . . Slashing . | . . . Piercing . | . . . Sneak Attacks . | . . . Combat Hostiles . | . . . Follow-up Attacks . | . . . Damage Inflicted 293 | . 293 . Guns 293 | . 293 . Cannons . | . . . Explosions . | . . . Melee . | . . . Ramming . | . . . Kinetic 159 | . 159 . Thermal 134 | . 134 . Explosive . | . . . Electromagnetic . | . . . Impact . | . . . Slashing . | . . . Piercing . | . . . Highest Corruption . | . . . Average Corruption . | . . . Corruption Purged . | . . . Corruption Blocked . | . . . Overload Shots . | . . . Overflow Damage . | . . . Projectiles . | . . . Explosions . | . . . Melee . | . . . Knockbacks . | . . . Impact . | . . . Kinetic . | . . . Secondary . | . . . Self-Inflicted Damage . | . . . Shots . | . . . Rammed . | . . . Targets Rammed . | . . . Kicked . | . . . Crushed . | . . . Highest Temperature 75 | . 75 . Average Temperature 36 | . 36 . Received Heat Transfer 264 | . 240 24 Siege Activations . | . . . Martial Activations . | . . . Shielding Activations . | . . . Robots Disrupted . | . . . Combat Hostiles . | . . . Robots Corrupted . | . . . Combat Hostiles . | . . . Parts Fried . | . . . Impact Corruptions . | . . . Robots Melted . | . . . Combat Hostiles . | . . . Parts Melted . | . . . Heat Transferred 300 | . 300 . Parts Sabotaged . | . . . Parts Stolen . | . . . Parts Stripped . | . . . Power Chain Reactions . | . . . Alert | -11 -10 -10 ------- Run | Yrd Mat Sub Maximum Alert Level . | . . . Low Security (%) 100 | 100 100 . Level 1 . | . . . Level 2 . | . . . Level 3 . | . . . Level 4 . | . . . Level 5 . | . . . High Security . | . . . Max Security . | . . . Peak Influence 75 | . 75 . Initial . | . . . Average 7 | . 8 . Influence Increases 219 | . 219 . Destroy 0b10 Robot/C 100 | . 100 . Destroy Leader 10 | . 10 . Successful Hack 4 | . 4 . Lose Combat Pursuer 105 | . 105 . Influence Decreases 219 | . 152 67 Entered New Map 33 | . . 33 Time Decay 136 | . 102 34 Lost Part 50 | . 50 . Squads Dispatched 1 | . 1 . Investigation 1 | . 1 . Extermination . | . . . Reinforcement . | . . . Assault . | . . . Garrison . | . . . Intercept . | . . . Searches Triggered . | . . . Construction Impeded . | . . . Haulers Reinforced . | . . . Active Scanning Responses . | . . . Cargo Convoy Interrupts . | . . . Stealth | -11 -10 -10 --------- Run | Yrd Mat Sub Distress Signals . | . . . Communications Jammed . | . . . Distress Signals . | . . . Times Spotted 26 | . 23 3 Peak Tracking Total 6 | . 6 2 Tactical Retreats 4 | . 3 1 Traps | -11 -10 -10 ------- Run | Yrd Mat Sub Traps Triggered 2 | . 2 . Indirectly . | . . . Trap Hack Attempts . | . . . Triggered . | . . . Disarmed . | . . . Reprogrammed . | . . . Reused . | . . . Traps Extracted . | . . . Installed . | . . . Triggered . | . . . Machines | -11 -10 -10 ---------- Run | Yrd Mat Sub Machines Disabled . | . . . Max in Single Turn . | . . . Machines Repaired . | . . . Machines Dismantled . | . . . Machines Sabotaged . | . . . Overloaded Fab Kills . | . . . Hacking | -11 -10 -10 --------- Run | Yrd Mat Sub Machines Accessed 4 | . 4 . Terminals 3 | . 3 . Fabricators . | . . . Repair Stations . | . . . Recycling Units 1 | . 1 . Scanalyzers . | . . . Garrison Access . | . . . Total Hacks 5 | . 5 . Successful 3 | . 3 . Failed 2 | . 2 . Catastrophic 1 | . 1 . Database Lockouts . | . . . Manual 1 | . 1 . Terminals 4 | . 4 . Fabricators . | . . . Repair Stations . | . . . Recycling Units 1 | . 1 . Scanalyzers . | . . . Garrison Access . | . . . Terminal Hacks 2 | . 2 . Emergency Access Points 1 | . 1 . Zone Layout 1 | . 1 . Fabricator Hacks . | . . . Repair Station Hacks . | . . . Recycling Unit Hacks 1 | . 1 . Process 1 | . 1 . Scanalyzer . | . . . Garrison Access Hacks . | . . . Unauthorized Hacks . | . . . Terminals . | . . . Fabricators . | . . . Repair Stations . | . . . Recycling Units . | . . . Scanalyzers . | . . . Garrison Access . | . . . Data Cores Recovered . | . . . Used . | . . . Hacking Detections 3 | . 3 . Full Trace Events . | . . . Feedback Events . | . . . Feedback Blocked . | . . . Robot Schematics Acquired . | . . . Robots Built . | . . . Authchips . | . . . Time . | . . . Total Robot Build Rating . | . . . Part Schematics Acquired . | . . . Parts Built . | . . . Authchips . | . . . Time . | . . . Total Part Build Rating . | . . . Part Studies Acquired . | . . . Parts Repaired . | . . . Time . | . . . Parts Recycled . | . . . Recycled Matter 9 | . 9 . Retrieved Matter . | . . . Retrieved Components . | . . . Parts Scanalyzed . | . . . Part Schematics Acquired . | . . . Parts Damaged . | . . . Bothacking | -11 -10 -10 ------------ Run | Yrd Mat Sub Used RIF Installer . | . . . Robots Hacked . | . . . Non-combat . | . . . Combat . | . . . Robot Hacks Applied . | . . . Relay Couplers Released . | . . . Fabnet Peak Effective % . | . . . Robots Rewired . | . . . Allies Hacked . | . . . Hacks Repelled . | . . . Allies | -11 -10 -10 -------- Run | Yrd Mat Sub Total Allies . | . . . Largest Group . | . . . Highest-Rated Group . | . . . Highest-Rated Ally . | . . . Total Orders . | . . . Ally Attacks . | . . . Total Damage . | . . . Kills . | . . . Allies Corrupted . | . . . Allies Melted . | . . . Intel | -11 -10 -10 ------- Run | Yrd Mat Sub Active Infowar (turns) 509 | . 398 111 Terrain 509 | . 398 111 Robot Analysis Total . | . . . Derelict Logs Recovered 1 | . . 1 Drone Launches . | . . . Drone Recoveries . | . . . Exploration | -11 -10 -10 ------------- Run | Yrd Mat Sub Turns Passed 772 | 41 620 111 Spaces Moved 853 | 39 699 115 Core 16 | 16 . . Treads . | . . . Legs . | . . . Wheels 302 | 23 279 . Hover . | . . . Flight 535 | . 420 115 Fastest Speed 37 | 50 37 37 Average Speed 59 | 79 62 37 Slowest Speed 100 | 100 100 37 Overloaded Moves . | . . . Propulsion Burnouts . | . . . Robots Hopped 11 | . 11 . Potential Cave-ins . | . . . Cave-ins Triggered . | . . . Exploration Rate (%) 26 | 3 66 9 Regions Visited 2 Branch Regions 1 Pre-discovered Areas 1 | . . 1 Known Exits Taken 1 | . 1 . Unknown Exits Taken 1 | 1 . . Scrap Searched . | . . . Spaces Dug . | . . . Terrain Destroyed . | . . . Melee . | . . . Projectile . | . . . AOE . | . . . Terrain Rammed . | . . . Walls Destroyed . | . . . Machines Disabled . | . . . Actions | -11 -10 -10 --------- Run | Yrd Mat Sub Total 1063 | 48 835 180 Wait 154 | . 91 63 Move 830 | 38 677 115 Hop 10 | . 10 . Pick Up 16 | 5 11 . Fast Attach . | . . . Attach 15 | 5 9 1 Detach . | . . . Swap 3 | . 3 . Drop 2 | . 2 . Fire 33 | . 32 1 Melee . | . . . Ram . | . . . Kick . | . . . Crush . | . . . Escape Stasis . | . . . Rewire . | . . . Trap . | . . . Miscellaneous . | . . . Route ------- -11/Scrapyard -10/Materials (discovered 4 exits: *Mat x2 / [*Min] / *Sub) -10/Subcaves (discovered 1 exit: [*Mat]) History --------- Turn | Location | Event 8 | -11/Scrapyard | Discovered new exit (range 16) 42 | -11/Scrapyard | Entered Materials 151 | -10/Materials | Discovered new exit (range 10) 157 | -10/Materials | Discovered new exit (range 12) 177 | -10/Materials | Identified exit to Materials 311 | -10/Materials | Build established: Mutant 371 | -10/Materials | Lost 4 parts (1p1n2w) 533 | -10/Materials | Core integrity fell below 50% 600 | -10/Materials | Discovered new exit (range 8) 612 | -10/Materials | Discovered exit to Materials (range 13) 642 | -10/Materials | Derelicts attacked the area 662 | -10/Materials | Identified exit to Subcaves 662 | -10/Materials | Entered Subcaves 663 | -10/Subcaves | Approached by a straggling Scientist 669 | -10/Subcaves | Learned location of Zion (-6) 681 | -10/Subcaves | Discovered new exit (range 9) 771 | -10/Subcaves | Core integrity fell below 20% 773 | -10/Subcaves | Destroyed by 41-IXF(R) with Subdweller Laser Last Messages --------------- 00644_ Lgt. Assault Rifle severed. 00644_ U-05 Engineer lays Concrete. 00660_ Terrain Scanner destroyed. 00662_ EXIT=IDENTIFIED: SUBCAVES LOCATION=SUBCAVES AMBIENT_HEAT=-10 GOAL=ESCAPE 00663_ 0U-S15(c): "Thank the algorithms! I was beginning to lose hope I'd never make it past all the Subs lurking out here." 00666_ 0U-S15(c): "Hey, let me tag along and I can get us both out of this nasty situation. At least I think I can... The group I got separated from was talking about a shortcut back to the UFD." 00669_ Acquired derelict log, extracted data. World map updated: -6/Zion. 00681_ EXIT=FOUND 00711_ OB-5FI(u) builds Twisted Machinery. 00770_ Mining Laser destroyed. Map ----- +----------------------------------------------------+ | ????????????????????## # | | ????????????????????# # | | ?????????????????????# #### | | ????????????????????## # | | ????????????????????# | | ????????????????????## ### # | | ?????????????????????## # ####?## # | | ?????????????????????## ###?????# | | ???????????????????### ##??#????###### ## | | ?????????????????### ##????????????######## | | ??????????????#### "" #???????????????????## | | ??????????????# " ##???#????????????????? | | ??????????????## " ""##?????????????????????? | | ???????????????# " "##?#???????????????????? | | ????????????#??# """" #??????#??????????????? | | ???????????????# ##?????????????????????? | | ??????????????#### u ##??#???????????????????? | | ?????????????#?### ##??????????????????????? | | ????????????????# ###???????????????#????? | | ??????????????#?# #?#??????????????????? | | ????????????????## ##???#???????????????? | | ?????????????????## ###??#???????????????? | | ??????????????????# #???????????????????? | | ?????????#??????# ## ##???????????????????? | | ??????????????## ###RR##????????????????????? | | ???????????????# ### @ ##????????????????????? | | ????????#??????###?# #????????????????????? | | ?????????????????### #??????#?????????????? | | ?????????????#???# #????????????????????? | | ?????????????????## ## #????????????????????? | | ??????#??#????????##### #??#????????????????? | | ????????#????????????? ##?#?????????????????? | | ??????????????????#??? ????#???????????????? | | ?????????????????????? #??#????????????????? | | ?????????????????????## #???????????????????? | | ??????????????#??#?????# #???????????????????? | | ????????#?????????????#? #???????????????????? | | ??????????????????#??#?? #???????????????????? | | ???????????????????#???? #???????????????????? | | ?????????????#?????????? ???????????????????? | | ????????????????????????? ???????????????????? | | ??????????????????????????????????????????????? | | ??????????????????????????????????????????????? | | ??????????????????????????????????????????????? | | ??????????????????????????????????????????????? | | ??????????????????????????????????????????????? | | ??????????????????????????????????????????????? | | ??????????????????????????????????????????????? | | ??????????????????????????????????????????????? | | ??????????????????????????????????????????????? | +----------------------------------------------------+ Best States ------------- Heat Dissipation 25 Energy Generation 10 Energy Capacity 250 Matter Stores 300 Matter Capacity 300 Sight Range 16 Terrain Scan Range 14 Terrain Scan Density 10 Evasion (%) 62 Item Schematics ----------------- None Robot Schematics ------------------ None Fabricated ------------ Nothing Repaired ---------- Nothing Studied --------- None Alien Tech Used ----------------- None Achievements -------------- None Challenges ------------ None Game ------ Seed NavigationReactionRay Manual? 0 Play Time 00:10:31 Cumulative 19.7 hours Start 2026.08.29 @ 23:45:48 End 2026.08.29 @ 23:55:25 Sessions 1 Manual Loads 0 Difficulty Rogue Special Mode None Game No. 43 Rogue 26 Adventurer 15 Explorer 2 Win Type - Total 0 Types 0/0/0/0/0/0/0/0/0/0 Lore% 21 Gallery% 19 Achievement% 16 Wizard Run 0 Options --------- Layout 1 ASCII 0 Keyboard 0 Movement Mouse Keybinds 0 Fullscreen 1 Font 24/Smallcaps Map View 50x35 Zoom Use 0% Tactical HUD 1 Map Filters NONE Filters NONE Steam 1 RUN: cd8a6f86-ab91-4d1d-887e-2f3ad0faa637